bitfinex/quotes_SOLUSD_20240716
["timestamp","ask_amount","ask_price","bid_price","bid_amount"]
[1721144573477,1.27400073,158.92,158.88,6.2939]
[1721144573649,1.27400073,158.92,158.87,15.736]
[1721144573973,1.27400073,158.92,158.89,6.2936]
[1721144574161,1.27400073,158.92,158.88,6.294]
[1721144574355,1.27400073,158.92,158.87,15.736]
[1721144574545,1.27400073,158.91,158.88,6.2939]
[1721144574950,1.27400073,158.93,158.88,6.2939]
[1721144575145,1.27400073,158.92,158.89,22.0267]
[1721144575358,1.27400073,158.93,158.89,15.7332]
[1721144575639,1.27400073,158.96,158.91,6.2928]
[1721144575844,1.27400073,158.96,158.9,6.2928]
[1721144575845,1.27400073,158.95,158.9,6.2928]
[1721144576044,7.56540073,158.95,158.9,6.2928]
[1721144576274,7.56540073,158.95,158.89,15.7332]
[1721144576275,7.56540073,158.95,158.89,22.0268]
[1721144576582,6.2918,158.94,158.89,22.0268]
[1721144576746,7.56610073,158.93,158.89,15.7332]
[1721144576942,6.2929,158.91,158.86,22.0314]
[1721144577245,1.27400073,158.9,158.88,15.7345]
[1721144577467,1.27400073,158.94,158.89,6.2936]
[1721144577769,46.27400073,158.94,158.88,22.0285]
[1721144577977,1.27400073,158.94,158.88,22.0284]
[1721144578264,1.27400073,158.94,158.88,15.7345]
[1721144578473,6.2925,158.92,158.88,15.7345]
[1721144578687,1.27400073,158.91,158.85,15.738]
[1721144579048,1.27400073,158.91,158.88,6.2939]
[1721144579249,45.0,158.95,158.84,31.4768]
[1721144579250,1.27400073,158.93,158.89,6.2933]
[1721144579560,1.27400073,158.95,158.92,15.7304]
[1721144580149,1.27400073,158.95,158.89,15.7339]
[1721144580345,1.27400073,158.95,158.9,6.2932]
[1721144580659,1.27400073,158.95,158.89,15.7339]
[1721144581174,6.2916,158.94,158.89,22.0275]
[1721144581468,1.27400073,158.93,158.85,15.7376]
[1721144581673,1.27400073,158.92,158.85,15.7376]
[1721144581877,6.2947,158.87,158.82,22.0368]
[1721144582048,1.27400073,158.9,158.85,6.295]
[1721144582252,1.27400073,158.89,158.86,6.2947]
[1721144582484,1.27400073,158.89,158.84,15.7382]
[1721144582953,6.2944,158.87,158.82,6.2963]
[1721144583154,1.27400073,158.86,158.83,6.296]
[1721144583367,1.27400073,158.85,158.82,6.2963]
[1721144583568,1.27400073,158.85,158.81,22.0382]
[1721144583868,1.27400073,158.85,158.82,6.2963]
[1721144584049,6.6242,158.91,158.8,31.485]
[1721144584247,15.8689,158.93,158.9,15.7326]
[1721144584448,15.8689,158.93,158.9,6.293]
[1721144584754,40.9942,158.95,158.89,15.7336]
[1721144584949,6.6242,158.95,158.89,15.7336]
[1721144586265,1.27400073,158.94,158.89,15.7336]
[1721144586761,7.56570073,158.94,158.89,22.0272]
[1721144586955,1.27400073,158.94,158.9,6.2932]
[1721144587354,1.27400073,158.94,158.89,15.7336]
[1721144587355,7.56570073,158.94,158.89,22.0271]
[1721144587582,7.56570073,158.94,158.9,6.2932]
[1721144587583,1.27400073,158.94,158.9,6.2932]
[1721144587757,7.56560073,158.94,158.89,22.0271]
[1721144588767,1.27400073,158.94,158.9,6.2932]
[1721144588968,7.56570073,158.94,158.89,22.0272]
[1721144589869,6.2922,158.93,158.89,15.7336]
[1721144590082,1.27400073,158.92,158.89,15.7336]
[1721144590567,6.6242,158.95,158.89,15.7336]
[1721144590772,1.27400073,158.94,158.89,15.7336]
[1721144591569,1.27400073,158.94,158.86,15.7366]
[1721144591764,46.27400073,158.94,158.86,15.7366]
[1721144591961,6.2928,158.92,158.87,6.2941]
[1721144592167,7.56680073,158.91,158.86,22.0313]
[1721144592368,7.56680073,158.91,158.86,15.7366]
[1721144592369,1.27400073,158.91,158.86,15.7366]
[1721144592863,1.27400073,158.91,158.87,6.2944]
[1721144593065,1.27400073,158.91,158.88,6.2939]
[1721144593268,40.9942,158.95,158.9,6.2932]
[1721144593576,6.6242,158.95,158.91,15.7315]
[1721144593751,6.6242,158.95,158.93,6.292]
[1721144593953,16.4391,158.97,158.93,15.7292]
[1721144594478,6.2913,158.95,158.89,6.2933]
[1721144594669,16.4391,158.97,158.84,31.4777]
[1721144594872,6.2913,158.95,158.89,22.0266]
[1721144595051,6.2918,158.94,158.89,22.0266]
[1721144595257,1.27400073,158.93,158.9,6.2932]
[1721144595453,1.27400073,158.92,158.89,22.0269]
[1721144595657,7.56660073,158.92,158.86,22.0312]
[1721144595857,7.56660073,158.92,158.87,6.2944]
[1721144596054,1.27400073,158.91,158.87,6.2944]
[1721144596255,1.27400073,158.91,158.88,6.294]
[1721144597080,1.27400073,158.91,158.83,15.7396]
[1721144597256,1.27400073,158.9,158.86,6.2947]
[1721144597458,1.27400073,158.9,158.85,6.2949]
[1721144597459,1.27400073,158.89,158.85,6.2949]
[1721144597663,1.27400073,158.89,158.86,6.2947]
[1721144598177,1.27400073,158.89,158.85,22.0325]
[1721144598483,1.27400073,158.89,158.86,6.2948]
[1721144598684,1.27400073,158.9,158.85,15.7374]
[1721144598879,1.27400073,158.89,158.87,6.2943]
[1721144599091,1.27400073,158.91,158.87,6.2943]
[1721144599394,1.27400073,158.91,158.86,6.2944]
[1721144599559,7.56690073,158.91,158.86,6.2944]
[1721144599766,6.2932,158.9,158.85,22.0325]
[1721144599992,1.27400073,158.89,158.86,6.2948]
[1721144600567,1.27400073,158.89,158.85,15.7374]
[1721144600877,34.37,158.88,158.78,6.58374032]
[1721144601061,6.2964,158.82,158.77,6.2983]
[1721144601270,17.01050073,158.87,158.75,12.5917]
[1721144601271,1.27400073,158.81,158.75,12.5917]
[1721144601466,1.27400073,158.84,158.76,6.2984]
[1721144601686,34.37,158.82,158.75,15.7476]
[1721144601980,34.37,158.82,158.72,6.5733]
[1721144601981,15.1443,158.8,158.73,6.2996]
[1721144602175,1.27400073,158.79,158.72,22.0507]
[1721144602376,6.2984,158.77,158.72,22.0507]
[1721144602585,7.57280073,158.76,158.72,15.7507]
[1721144603086,7.57280073,158.76,158.7,6.3011]
[1721144603271,1.27400073,158.76,158.71,6.3007]
[1721144603674,7.57280073,158.76,158.7,22.0532]
[1721144603861,34.37,158.75,158.68,6.3017]
[1721144604067,7.57390073,158.74,158.68,6.3017]
[1721144604285,1.27400073,158.73,158.68,6.3017]
[1721144604476,1.27400073,158.73,158.64,16.5363]
[1721144604676,6.3004,158.72,158.67,6.3022]
[1721144604874,1.27400073,158.71,158.66,22.0595]
[1721144605073,1.27400073,158.7,158.66,22.0595]
[1721144605271,1.27400073,158.7,158.66,15.7568]
[1721144605588,1.27400073,158.7,158.66,22.0595]
[1721144605784,1.27400073,158.7,158.66,15.7568]
[1721144606002,40.6716,158.69,158.62,15.7601]
[1721144606297,1.27400073,158.68,158.61,6.59174794]
[1721144606479,1.27400073,158.67,158.62,6.3043]
[1721144606989,1.27400073,158.67,158.61,6.59174794]
[1721144607407,1.27400073,158.67,158.64,6.3034]
[1721144607695,15.6672,158.71,158.63,15.7596]
[1721144607696,1.27400073,158.66,158.63,22.0631]
[1721144607868,15.6672,158.71,158.63,15.7596]
[1721144607869,1.27400073,158.7,158.63,15.7596]
[1721144608194,46.27400073,158.7,158.61,6.59174794]
[1721144608370,1.27400073,158.7,158.63,6.3038]
[1721144608569,52.57550073,158.7,158.63,6.3038]
[1721144608785,46.27400073,158.7,158.63,6.3039]
[1721144609094,46.27400073,158.7,158.61,6.59174794]
[1721144609265,34.37,158.66,158.61,12.89644794]
[1721144609466,1.27400073,158.65,158.62,6.3043]
[1721144609788,1.27400073,158.64,158.61,28.65834794]
[1721144610286,1.27400073,158.64,158.61,6.59174794]
[1721144611270,1.27400073,158.64,158.61,6.3047]
[1721144611496,1.27400073,158.63,158.61,6.3047]
[1721144611794,7.57730073,158.65,158.6,15.7619]
[1721144611971,1.27400073,158.64,158.6,15.7619]
[1721144612172,1.27400073,158.64,158.62,22.0643]
[1721144612474,1.27400073,158.66,158.6,6.3051]
[1721144613401,7.57720073,158.65,158.6,6.3051]
[1721144613569,1.27400073,158.64,158.6,6.3051]
[1721144613769,1.27400073,158.64,158.62,6.3042]
[1721144614094,1.27400073,158.68,158.66,6.3027]
[1721144614398,1.27400073,158.7,158.66,6.3027]
[1721144614597,7.57520073,158.7,158.64,15.7582]
[1721144614799,6.3016,158.69,158.61,15.7616]
[1721144615097,1.27400073,158.7,158.68,6.3019]
[1721144615400,7.57430073,158.73,158.67,22.0575]
[1721144615905,6.3005,158.72,158.67,15.7552]
[1721144616075,7.57490073,158.71,158.64,15.7587]
[1721144616277,1.27400073,158.7,158.64,15.7587]
[1721144616494,1.27400073,158.7,158.66,6.3024]
[1721144617094,1.27400073,158.7,158.67,6.3022]
[1721144617395,1.27400073,158.69,158.63,15.7597]
[1721144617609,1.27400073,158.69,158.6,16.3978]
[1721144617898,6.3027,158.67,158.59,15.763]
[1721144618105,1.27400073,158.66,158.61,22.0659]
[1721144618282,6.3032,158.65,158.61,15.7612]
[1721144618475,7.57780073,158.64,158.58,15.7647]
[1721144618997,1.27400073,158.64,158.58,15.7647]
[1721144619188,7.57790073,158.64,158.58,22.0703]
[1721144619383,1.27400073,158.63,158.58,22.0703]
[1721144619589,1.27400073,158.66,158.6,15.7621]
[1721144620178,7.57680073,158.66,158.6,15.7621]
[1721144620489,7.57680073,158.66,158.56,0.8470737]
[1721144620490,45.0,158.65,158.56,0.8470737]
[1721144620796,1.27400073,158.64,158.6,6.3048]
[1721144620982,1.27400073,158.64,158.6,6.305]
[1721144621400,7.57760073,158.64,158.59,6.3054]
[1721144622097,1.27400073,158.64,158.59,6.3054]
[1721144622400,1.27400073,158.64,158.6,6.3049]
[1721144622604,1.27400073,158.63,158.58,15.7642]
[1721144622900,6.3044,158.62,158.56,7.1534737]
[1721144623076,1.27400073,158.61,158.57,6.306]
[1721144623275,1.27400073,158.6,158.57,6.306]
[1721144623677,1.27400073,158.62,158.58,6.3058]
[1721144623906,1.27400073,158.62,158.59,6.3055]
[1721144624206,1.27400073,158.62,158.57,15.7652]
[1721144624390,6.3032,158.65,158.6,6.3049]
[1721144624391,1.27400073,158.64,158.6,6.3049]
[1721144624702,1.27400073,158.64,158.59,15.7632]
[1721144624904,1.27400073,158.64,158.56,0.8470737]
[1721144625195,16.3011,158.67,158.56,0.8470737]
[1721144625196,7.57560073,158.69,158.63,22.0631]
[1721144625395,1.27400073,158.69,158.63,22.0631]
[1721144625579,6.3024,158.67,158.63,15.7595]
[1721144625905,1.27400073,158.66,158.56,32.3797737]
[1721144626198,1.27400073,158.66,158.57,20.0]
[1721144626372,1.27400073,158.66,158.56,32.3797737]
[1721144626575,6.3035,158.64,158.6,15.7628]
[1721144626772,7.57800073,158.63,158.58,6.3057]
[1721144627077,1.27400073,158.63,158.57,15.7655]
[1721144627477,1.27400073,158.63,158.57,22.0718]
[1721144627478,6.3046,158.62,158.57,22.0718]
[1721144627687,7.57870073,158.61,158.57,15.7655]
[1721144627885,7.57920073,158.6,158.56,0.8470737]
[1721144628091,51.3058,158.59,158.56,0.8470737]
[1721144628297,1.27400073,158.58,158.56,0.8470737]
[1721144628512,1.27400073,158.57,158.56,0.8470737]
[1721144629172,52.58030073,158.57,158.56,0.8470737]
[1721144629376,46.27400073,158.57,158.56,0.8470737]
[1721144629592,7.57990073,158.59,158.56,0.8470737]
[1721144629795,1.27400073,158.59,158.56,0.8470737]
[1721144630381,6.3059,158.58,158.56,0.8470737]
[1721144630697,1.27400073,158.57,158.56,0.8470737]
[1721144631299,1.27400073,158.59,158.57,6.3061]
[1721144631492,1.27400073,158.61,158.57,6.3061]
[1721144631692,1.27400073,158.6,158.57,6.3061]
[1721144632209,1.27400073,158.6,158.56,16.6133737]
[1721144632584,1.27400073,158.62,158.56,16.6133737]
[1721144632782,46.27400073,158.62,158.56,0.8470737]
[1721144633281,62.03540073,158.62,158.56,0.8470737]
[1721144633488,6.3056,158.59,158.56,0.8470737]
[1721144633688,1.27400073,158.58,158.56,0.8470737]
[1721144633890,7.58030073,158.57,158.56,0.8470737]
[1721144634292,51.3063,158.57,158.56,0.8470737]
[1721144635185,51.3063,158.57,158.49,22.0828]
[1721144635186,6.3077,158.54,158.49,22.0828]
[1721144635489,15.1433,158.56,158.49,15.7736]
[1721144635490,1.27400073,158.53,158.49,15.7736]
[1721144635803,1.27400073,158.55,158.5,6.309]
[1721144636011,1.27400073,158.54,158.49,22.0828]
[1721144636212,6.308,158.53,158.46,15.7767]
[1721144636517,1.27400073,158.52,158.5,6.309]
[1721144636679,7.58150073,158.54,158.49,6.3094]
[1721144637301,1.27400073,158.54,158.48,15.7742]
[1721144638782,6.308,158.53,158.48,22.0841]
[1721144638991,7.58240073,158.52,158.48,15.7742]
[1721144639287,1.27400073,158.51,158.48,15.7742]
[1721144639596,7.58280073,158.51,158.45,15.7776]
[1721144639908,45.0,158.5,158.45,22.0886]
[1721144640082,1.27400073,158.49,158.46,6.3106]
[1721144640288,1.27400073,158.48,158.45,22.0886]
[1721144640487,1.27400073,158.49,158.47,6.31]
[1721144640683,1.27400073,158.52,158.45,15.7776]
[1721144640886,1.27400073,158.51,158.42,31.5607]
[1721144641086,1.27400073,158.51,158.5,6.3091]
[1721144641382,1.27400073,158.55,158.42,31.5607]
[1721144641583,1.27400073,158.54,158.51,22.0796]
[1721144641810,1.27400073,158.54,158.51,22.0794]
[1721144641985,1.27400073,158.54,158.48,15.7747]
[1721144642292,7.58180073,158.54,158.49,6.3094]
[1721144642495,7.58180073,158.54,158.48,15.7747]
[1721144642707,1.27400073,158.54,158.51,6.3086]
[1721144642880,1.27400073,158.54,158.51,6.3087]
[1721144643083,1.27400073,158.54,158.5,15.7719]
[1721144643300,1.27400073,158.55,158.54,6.3075]
[1721144643485,1.27400073,158.59,158.53,6.3075]
[1721144643686,35.64400073,158.59,158.49,15.7735]
[1721144644202,6.3075,158.54,158.49,22.083]
[1721144644385,1.27400073,158.53,158.49,22.083]
[1721144644781,46.27400073,158.53,158.49,22.083]
[1721144644987,1.27400073,158.53,158.51,6.3087]
[1721144645187,40.6768,158.56,158.51,6.3087]
[1721144645188,1.27400073,158.55,158.51,6.3087]
[1721144645382,1.27400073,158.54,158.51,6.3087]
[1721144645588,1.27400073,158.54,158.5,6.309]
[1721144645899,1.27400073,158.54,158.49,22.0829]
[1721144646203,1.27400073,158.54,158.49,15.7735]
[1721144646382,34.37,158.56,158.49,15.7735]
[1721144646588,1.27400073,158.59,158.56,6.3065]
[1721144646784,1.27400073,158.59,158.57,6.3062]
[1721144646984,1.27400073,158.59,158.56,22.0729]
[1721144647184,1.27400073,158.59,158.53,22.077]
[1721144647404,1.27400073,158.59,158.53,15.7695]
[1721144647606,1.27400073,158.59,158.5,70.117]
[1721144647927,6.3066,158.57,158.52,6.3083]
[1721144648093,1.27400073,158.56,158.5,15.7725]
[1721144648292,6.3079,158.54,158.49,6.3095]
[1721144648595,1.27400073,158.53,158.49,6.3094]
[1721144648795,46.27400073,158.53,158.49,6.3094]
[1721144649207,1.27400073,158.53,158.5,6.3089]
[1721144649508,7.58070073,158.57,158.51,6.3085]
[1721144649908,1.27400073,158.57,158.51,15.7713]
[1721144650092,1.27400073,158.57,158.54,6.3075]
[1721144650297,1.27400073,158.56,158.54,6.3074]
[1721144650491,15.199,158.6,158.53,15.7692]
[1721144650492,6.306,158.58,158.53,15.7692]
[1721144650700,1.27400073,158.57,158.54,6.3075]
[1721144650897,1.27400073,158.57,158.55,6.3071]
[1721144651294,1.27400073,158.57,158.54,6.3074]
[1721144651607,1.27400073,158.59,158.56,6.3067]
[1721144651906,1.27400073,158.6,158.57,15.7652]
[1721144652108,1.27400073,158.62,158.57,15.7652]
[1721144652293,1.27400073,158.62,158.58,6.3058]
[1721144652907,1.27400073,158.62,158.57,15.7652]
[1721144653126,1.27400073,158.61,158.6,6.3049]
[1721144653310,1.27400073,158.63,158.59,22.0688]
[1721144653620,1.27400073,158.63,158.59,15.7634]
[1721144653821,7.57810073,158.63,158.54,31.5372]
[1721144653985,7.57810073,158.63,158.58,6.3059]
[1721144654185,1.27400073,158.63,158.59,6.3055]
[1721144654408,1.27400073,158.63,158.59,6.3053]
[1721144655310,1.27400073,158.63,158.6,6.3048]
[1721144655504,1.27400073,158.62,158.6,6.3048]
[1721144655704,1.27400073,158.64,158.6,6.3048]
[1721144656005,1.27400073,158.64,158.57,6.3063]
[1721144656213,6.3048,158.61,158.56,6.3066]
[1721144656399,1.27400073,158.6,158.56,6.3067]
[1721144656588,46.27400073,158.6,158.56,6.3067]
[1721144656791,52.57920073,158.6,158.55,22.0744]
[1721144657006,6.3056,158.59,158.55,15.7674]
[1721144657310,6.3066,158.57,158.52,22.0783]
[1721144657491,1.27400073,158.56,158.52,15.7703]
[1721144657691,1.27400073,158.59,158.52,15.7703]
[1721144657892,6.3063,158.58,158.52,22.0782]
[1721144658104,1.27400073,158.57,158.53,6.3078]
[1721144658600,1.27400073,158.57,158.52,22.0785]
[1721144658789,1.27400073,158.57,158.52,15.7703]
[1721144658999,1.27400073,158.56,158.53,6.3079]
[1721144659218,46.27400073,158.56,158.53,6.3079]
[1721144659522,1.27400073,158.56,158.53,6.3079]
[1721144659703,1.27400073,158.56,158.52,15.7703]
[1721144660325,6.3074,158.55,158.51,6.3087]
[1721144660494,1.27400073,158.54,158.51,6.3087]
[1721144660689,1.27400073,158.54,158.49,15.7736]
[1721144660922,52.58160073,158.54,158.49,22.083]
[1721144661137,1.27400073,158.54,158.49,15.7736]
[1721144661433,6.3087,158.51,158.47,6.3103]
[1721144661726,1.27400073,158.5,158.47,6.3103]
[1721144662027,1.27400073,158.5,158.46,22.0869]
[1721144662815,7.58320073,158.5,158.46,15.7763]
[1721144663500,6.3096,158.49,158.44,6.3114]
[1721144663726,1.27400073,158.48,158.44,6.3114]
[1721144663926,1.27400073,158.48,158.45,15.7773]
[1721144664328,1.27400073,158.48,158.46,6.3106]
[1721144664533,1.27400073,158.5,158.46,6.3106]
[1721144664741,7.58330073,158.5,158.45,22.0884]
[1721144665444,1.27400073,158.5,158.45,15.7773]
[1721144665939,1.27400073,158.5,158.46,6.3106]
[1721144666235,7.58310073,158.5,158.45,22.0883]
[1721144666440,6.3095,158.49,158.45,15.7773]
[1721144666743,7.58390073,158.48,158.42,15.7804]
[1721144667043,7.58390073,158.48,158.43,6.3116]
[1721144668308,6.3104,158.47,158.42,22.0926]
[1721144668544,1.27400073,158.46,158.42,22.0926]
[1721144668741,1.27400073,158.45,158.42,22.0926]
[1721144669245,1.27400073,158.45,158.43,6.3119]
[1721144669416,1.27400073,158.48,158.44,6.3115]
[1721144669718,6.3106,158.47,158.42,22.0925]
[1721144669930,1.27400073,158.46,158.42,15.7804]
[1721144670118,1.27400073,158.46,158.43,6.3118]
[1721144673146,52.58670073,158.41,158.4,0.8470737]
[1721144677419,15.7844,158.39,158.24,31.5961]
[1721144677626,6.3154,158.35,158.3,22.1094]
[1721144677941,7.58950073,158.34,158.3,15.7924]
[1721144678252,51.3159,158.33,158.27,15.7952]
[1721144678449,1.27400073,158.32,158.27,15.7952]
[1721144678752,1.27400073,158.32,158.29,6.3173]
[1721144678938,1.27400073,158.32,158.28,6.3178]
[1721144679125,1.27400073,158.32,158.29,6.3174]
[1721144679435,1.27400073,158.32,158.29,15.7933]
[1721144679637,1.27400073,158.34,158.29,15.7933]
[1721144679818,46.27400073,158.34,158.3,6.317]
[1721144680019,46.27400073,158.34,158.31,6.3166]
[1721144680225,1.27400073,158.34,158.31,6.3166]
[1721144680842,1.27400073,158.34,158.29,15.7933]
[1721144681131,6.316,158.33,158.29,22.1104]
[1721144681332,1.27400073,158.32,158.31,6.3167]
[1721144681533,1.27400073,158.33,158.31,6.3167]
[1721144681749,1.27400073,158.33,158.32,6.3163]
[1721144681923,1.27400073,158.33,158.28,15.7943]
[1721144682129,1.27400073,158.32,158.29,6.3173]
[1721144682318,1.27400073,158.32,158.28,15.7943]
[1721144682513,1.27400073,158.37,158.33,6.3156]
[1721144682725,31.98400073,158.37,158.35,15.7871]
[1721144683021,30.71,158.37,158.35,22.1021]
[1721144683427,1.27400073,158.36,158.35,15.7871]
[1721144683628,1.27400073,158.36,158.32,15.7901]
[1721144683820,37.0243,158.37,158.32,22.1061]
[1721144683821,1.27400073,158.35,158.32,22.1061]
[1721144684232,31.98400073,158.41,158.34,6.3154]
[1721144684424,31.98400073,158.41,158.29,21.9237]
[1721144684743,31.98400073,158.41,158.32,31.581]
[1721144685038,31.98400073,158.41,158.29,21.9237]
[1721144685039,47.76660073,158.41,158.29,21.9237]
[1721144685239,37.0242,158.38,158.33,6.3157]
[1721144685444,1.27400073,158.37,158.33,6.3157]
[1721144685643,1.27400073,158.37,158.34,6.3154]
[1721144685938,1.27400073,158.37,158.32,15.7903]
[1721144686116,6.3149,158.36,158.32,15.7903]
[1721144686316,1.27400073,158.35,158.32,15.7903]
[1721144686528,1.27400073,158.35,158.32,22.1065]
[1721144687022,1.27400073,158.35,158.32,15.7903]
[1721144687222,1.27400073,158.35,158.32,22.1065]
[1721144687423,1.27400073,158.36,158.32,22.1065]
[1721144687723,30.71,158.38,158.34,15.7882]
[1721144687932,1.27400073,158.37,158.34,22.1034]
[1721144688240,1.27400073,158.37,158.35,6.315]
[1721144688731,30.71,158.38,158.36,6.3147]
[1721144688924,1.27400073,158.43,158.37,6.314]
[1721144688925,30.71,158.41,158.37,6.314]
[1721144689130,30.71,158.41,158.32,31.5812]
[1721144689131,1.27400073,158.4,158.35,6.3149]
[1721144689337,1.27400073,158.39,158.36,6.3147]
[1721144689545,1.27400073,158.39,158.37,6.3142]
[1721144689746,1.27400073,158.39,158.35,15.7873]
[1721144690045,1.27400073,158.39,158.35,22.1021]
[1721144690222,1.27400073,158.39,158.29,21.9237]
[1721144690433,7.58760073,158.39,158.34,15.7887]
[1721144690734,1.27400073,158.39,158.35,6.315]
[1721144691046,1.27400073,158.39,158.36,6.3146]
[1721144691348,1.27400073,158.38,158.36,15.7864]
[1721144691835,1.27400073,158.38,158.34,6.3154]
[1721144692029,7.58790073,158.38,158.34,6.3154]
[1721144692233,1.27400073,158.38,158.33,15.7892]
[1721144692438,1.27400073,158.38,158.35,15.7873]
[1721144692641,6.3135,158.39,158.35,15.7873]
[1721144692838,1.27400073,158.38,158.35,15.7873]
[1721144693452,6.315,158.36,158.31,6.3165]
[1721144693657,52.58920073,158.35,158.3,6.3171]
[1721144693853,6.3156,158.34,158.29,22.1105]
[1721144694060,1.27400073,158.33,158.29,22.1105]
[1721144694234,1.27400073,158.32,158.3,6.3169]
[1721144694649,1.27400073,158.32,158.29,22.1106]
[1721144694842,1.27400073,158.32,158.29,15.7932]
[1721144695342,83.30030073,158.32,158.27,6.3182]
[1721144695676,83.30030073,158.32,158.26,22.1148]
[1721144695677,6.3168,158.31,158.26,22.1148]
[1721144695840,1.27400073,158.3,158.27,6.3182]
[1721144696039,45.0,158.31,158.26,15.7963]
[1721144696040,1.27400073,158.29,158.26,15.7963]
[1721144696774,1.27400073,158.3,158.29,6.3171]
[1721144697653,1.27400073,158.3,158.28,22.1118]
[1721144697853,1.27400073,158.31,158.29,6.3172]
[1721144698545,1.27400073,158.31,158.27,6.3179]
[1721144698766,46.27400073,158.31,158.28,6.3178]
[1721144698972,1.27400073,158.31,158.29,6.3175]
[1721144699182,1.27400073,158.31,158.28,6.3177]
[1721144699347,1.27400073,158.31,158.27,15.7949]
[1721144699547,1.27400073,158.31,158.27,22.1129]
[1721144699779,1.27400073,158.31,158.28,6.3177]
[1721144699982,1.27400073,158.31,158.27,22.1131]
[1721144700162,52.59080073,158.31,158.27,15.7949]
[1721144700762,30.71,158.32,158.29,15.7933]
[1721144700967,30.71,158.35,158.29,15.7933]
[1721144701289,16.0205,158.39,158.37,6.3141]
[1721144701290,1.27400073,158.38,158.37,6.3141]
[1721144701455,1.27400073,158.38,158.36,15.7864]
[1721144701780,30.71,158.38,158.34,6.3154]
[1721144701997,1.27400073,158.37,158.25,0.8470737]
[1721144702165,6.3167,158.32,158.28,6.3178]
[1721144702472,1.27400073,158.34,158.3,6.3168]
[1721144702677,6.3163,158.32,158.28,6.3177]
[1721144702847,7.59100073,158.31,158.26,22.1145]
[1721144703167,1.27400073,158.31,158.27,6.3181]
[1721144703478,52.59080073,158.31,158.27,6.3181]
[1721144703684,46.27400073,158.31,158.27,6.3181]
[1721144703882,1.27400073,158.31,158.28,15.7942]
[1721144704090,1.27400073,158.31,158.25,0.8470737]
[1721144704254,52.59100073,158.31,158.26,6.3185]
[1721144704873,30.71,158.29,158.25,0.8470737]
[1721144705179,7.59200073,158.28,158.25,0.8470737]
[1721144705351,46.27400073,158.28,158.25,0.8470737]
[1721144706189,1.27400073,158.28,158.25,7.1660737]
[1721144706393,1.27400073,158.28,158.27,6.3183]
[1721144706558,1.27400073,158.31,158.25,16.6440737]
[1721144706754,1.27400073,158.31,158.28,6.3175]
[1721144707184,6.3171,158.3,158.25,7.1660737]
[1721144707366,1.27400073,158.29,158.25,0.8470737]
[1721144707558,30.71,158.32,158.25,0.8470737]
[1721144707559,1.27400073,158.31,158.27,15.7956]
[1721144708062,1.27400073,158.31,158.28,6.3178]
[1721144708689,1.27400073,158.31,158.29,6.3171]
[1721144709192,31.98400073,158.35,158.26,15.4821]
[1721144709487,31.98400073,158.35,158.31,22.1078]
[1721144710265,31.98400073,158.35,158.33,6.3157]
[1721144710477,30.71,158.38,158.35,6.3149]
[1721144710662,30.71,158.38,158.36,6.3146]
[1721144710997,16.3709,158.44,158.32,6.1156]
[1721144711305,30.71,158.42,158.32,6.1156]
[1721144711474,30.71,158.42,158.36,15.7864]
[1721144711663,30.71,158.42,158.32,37.6969]
[1721144711664,30.71,158.42,158.4,6.3131]
[1721144712176,37.0215,158.45,158.4,6.3131]
[1721144712393,30.71,158.47,158.43,6.3119]
[1721144712694,1.27400073,158.46,158.43,6.3119]
[1721144712868,1.27400073,158.45,158.43,6.3119]
[1721144713065,1.27400073,158.45,158.39,15.7835]
[1721144713278,1.27400073,158.45,158.37,1.2616303]
[1721144713502,1.27400073,158.45,158.41,15.7811]
[1721144714098,7.58510073,158.45,158.41,15.7811]
[1721144714286,1.27400073,158.45,158.38,15.7844]
[1721144714490,1.27400073,158.45,158.4,15.7821]
[1721144714673,6.3115,158.44,158.4,15.7821]
[1721144714868,1.27400073,158.43,158.4,15.7821]
[1721144715186,1.27400073,158.45,158.4,15.7821]
[1721144715396,1.27400073,158.45,158.4,22.0949]
[1721144715567,6.3116,158.44,158.4,22.0949]
[1721144715769,1.27400073,158.43,158.41,6.3125]
[1721144715991,1.27400073,158.45,158.41,6.3126]